bitfinex-derivatives/quotes_ETHF0:USTF0_20240924
["timestamp","ask_amount","ask_price","bid_price","bid_amount"]
[1727221432450,0.808,2655.0,2654.9,0.95]
[1727221433353,0.808,2655.0,2654.9,1.8284]
[1727221433958,1.18462,2655.0,2654.9,1.8284]
[1727221437153,3.15613816,2655.2,2654.9,2.20503]
[1727221437154,0.3766,2655.2,2654.9,2.20503]
[1727221437356,0.3766,2655.2,2655.1,0.95]
[1727221437549,0.3766,2655.2,2655.1,41.75]
[1727221437852,1.25129,2655.3,2655.1,41.75]
[1727221438559,0.3766,2655.2,2655.1,41.75]
[1727221438762,9.2423,2655.2,2654.4,1.97081526]
[1727221439056,0.37667,2654.7,2654.5,1.7857]
[1727221439252,0.8747,2654.6,2654.5,1.7857]
[1727221439962,0.8747,2654.6,2654.5,42.96239]
[1727221440153,0.8747,2654.6,2654.5,42.5857]
[1727221440351,2.16595,2654.9,2654.5,42.5857]
[1727221440552,0.9029,2654.8,2654.6,3.2078]
[1727221440852,0.37661,2655.1,2654.7,0.37667]
[1727221441044,0.9029,2655.1,2654.8,0.37665]
[1727221441248,0.9029,2655.1,2654.6,3.2078]
[1727221441452,0.9029,2655.1,2654.9,40.8]
[1727221441652,0.9029,2655.1,2655.0,2.705]
[1727221441861,4.109,2655.4,2655.0,2.705]
[1727221442156,2.31003816,2655.6,2655.3,0.95]
[1727221442358,0.9029,2655.6,2655.5,2.06]
[1727221446258,4.878,2655.9,2655.5,2.43655]
[1727221446458,0.9012,2655.8,2655.6,0.8529]
[1727221446959,0.9012,2655.8,2655.7,0.8165]
[1727221447353,1.46463816,2656.1,2655.7,2.8765]
[1727221447550,0.9012,2656.0,2655.7,2.8765]
[1727221447956,0.9012,2656.0,2655.7,3.25302]
[1727221448558,0.9012,2656.0,2655.7,2.8765]
[1727221449059,1.46463816,2656.2,2655.7,2.8765]
[1727221449255,0.9012,2656.1,2655.9,2.4365]
[1727221449453,0.9012,2656.1,2656.0,0.8165]
[1727221449657,0.9012,2656.1,2656.0,41.6165]
[1727221450155,0.9012,2656.1,2656.0,41.99298]
[1727221450351,0.9012,2656.1,2656.0,41.6165]
[1727221453263,0.9012,2656.1,2656.0,41.72014003]
[1727221453467,0.9012,2656.1,2656.0,42.09662003]
[1727221455469,1.22863,2656.4,2656.0,42.09662003]
[1727221455674,0.8522,2656.3,2656.1,0.8417]
[1727221456364,0.8522,2656.3,2656.2,40.8]
[1727221456869,0.8522,2656.3,2656.1,0.8417]
[1727221457266,0.8522,2656.3,2656.1,41.6417]
[1727221457670,0.8522,2656.3,2656.2,2.43645]
[1727221457966,0.8522,2656.3,2656.2,5.64425]
[1727221458169,0.8522,2656.3,2656.2,2.06]
[1727221458366,0.8522,2656.3,2656.2,42.86]
[1727221458568,0.8522,2656.3,2656.2,46.0678]
[1727221458776,0.8522,2656.3,2656.2,43.23645]
[1727221459164,0.8522,2656.3,2656.2,42.86]
[1727221460268,1.22864,2656.3,2656.2,40.8]
[1727221460467,1.22864,2656.3,2656.1,0.8417]
[1727221460977,0.8522,2656.3,2656.1,41.6417]
[1727221461377,1.22865,2656.3,2656.1,41.6417]
[1727221461666,1.22865,2656.3,2655.8,2.43651]
[1727221461667,0.8522,2656.3,2655.8,2.43651]
[1727221461869,0.37648,2656.1,2655.8,2.43651]
[1727221462068,0.37648,2656.1,2655.9,40.8]
[1727221462578,0.823,2656.2,2655.8,2.06]
[1727221462579,0.37649,2656.0,2655.8,2.06]
[1727221462867,0.8232,2656.0,2655.8,2.43651]
[1727221463069,0.8789,2655.9,2655.8,2.43651]
[1727221463467,0.37653,2655.7,2655.4,2.06]
[1727221463675,0.37653,2655.7,2655.4,4.11906]
[1727221463970,0.37652,2655.8,2655.4,4.22473071]
[1727221464166,0.37652,2655.8,2655.5,0.37655]
[1727221464371,1.82017,2655.9,2655.4,3.84817071]
[1727221464564,0.37655,2655.6,2655.4,2.98367071]
[1727221464771,0.8789,2655.5,2655.4,2.98367071]
[1727221465068,0.8789,2655.5,2655.4,2.16567071]
[1727221465272,0.8789,2655.5,2655.4,2.06]
[1727221466482,0.8789,2655.5,2655.4,2.43657]
[1727221466673,0.37653,2655.7,2655.5,0.37655]
[1727221466862,0.37653,2655.7,2655.6,2.06]
[1727221467571,1.24702,2655.8,2655.6,2.06]
[1727221467769,1.24702,2655.8,2655.6,3.7344]
[1727221468170,0.8705,2655.8,2655.6,3.7344]
[1727221468778,0.8705,2655.8,2655.6,4.11094]
[1727221469880,0.37652,2655.7,2655.6,2.06]
[1727221470071,1.19572,2655.7,2655.6,2.06]
[1727221472974,0.37654,2655.6,2655.5,40.8]
[1727221473778,4.14214,2655.6,2655.5,40.8]
[1727221474580,0.37658,2655.3,2655.2,0.8763]
[1727221474982,0.37658,2655.3,2655.2,41.6763]
[1727221475380,0.37658,2655.3,2655.2,42.0529]
[1727221475579,1.27438,2655.4,2655.2,42.0529]
[1727221476780,1.27438,2655.4,2655.2,40.8]
[1727221476781,0.37658,2655.3,2655.2,40.8]
[1727221476974,4.14298,2655.3,2655.2,40.8]
[1727221477180,0.3766,2655.2,2655.1,2.06]
[1727221477381,0.8429,2655.2,2654.9,2.43664]
[1727221477577,1.21951,2655.2,2655.0,0.37662]
[1727221477778,1.21951,2655.2,2654.8,1.77900096]
[1727221477779,0.37659,2655.3,2655.1,43.23661]
[1727221477984,0.37659,2655.3,2655.1,2.43661]
[1727221478292,0.37659,2655.3,2655.1,2.06]
[1727221478485,0.37659,2655.3,2655.2,0.8526]
[1727221479191,4.14299,2655.3,2655.2,0.8526]
[1727221479390,0.37659,2655.3,2655.2,0.8526]
[1727221481594,4.14299,2655.3,2655.2,0.8526]
[1727221482095,0.3766,2655.2,2655.1,42.86]
[1727221482487,4.143,2655.2,2655.1,42.86]
[1727221482690,0.3766,2655.2,2655.1,42.86]
[1727221488197,0.3766,2655.2,2655.1,40.8]
[1727221488695,1.3181,2655.2,2655.1,40.8]
[1727221488892,0.37661,2655.1,2655.0,0.844]
[1727221489091,1.23331,2655.1,2655.0,0.844]
[1727221489400,4.44111,2655.1,2655.0,0.844]
[1727221490286,1.23331,2655.1,2655.0,0.844]
[1727221498799,1.23331,2655.1,2655.0,3.28062]
[1727221499005,0.37661,2655.2,2655.0,3.28062]
[1727221499401,0.37661,2655.1,2655.0,2.904]
[1727221500096,0.37661,2655.1,2655.0,3.28062]
[1727221500299,0.37661,2655.1,2655.0,2.904]
[1727221500600,0.37661,2655.1,2655.0,0.844]
[1727221501190,4.14301,2655.1,2655.0,0.844]
[1727221501394,0.37661,2655.1,2655.0,0.844]
[1727221503397,0.37661,2655.1,2655.0,1.22062]
[1727221504299,0.37661,2655.1,2655.0,0.844]
[1727221504699,0.37661,2655.1,2655.0,1.22062]
[1727221504901,4.47657,2655.4,2655.2,0.37659]
[1727221505101,4.47657,2655.4,2655.3,1.7376]
[1727221505298,3.2078,2655.4,2655.3,2.5566]
[1727221505601,2.80851628,2656.0,2655.3,6.3222]
[1727221505602,1.81563816,2656.0,2655.3,6.3222]
[1727221505805,0.8431,2655.9,2655.3,2.5566]
[1727221505994,0.37654,2655.6,2655.3,2.5566]
[1727221506194,0.8431,2655.5,2655.3,2.5566]
[1727221507605,1.21966,2655.5,2655.3,2.5566]
[1727221508211,1.21966,2655.5,2655.3,2.66433206]
[1727221509302,1.21966,2655.5,2655.3,2.5566]
[1727221510799,1.46463816,2655.7,2655.4,2.06]
[1727221511004,3.61475816,2655.8,2655.4,2.06]
[1727221511201,1.46463816,2655.7,2655.4,2.43656]
[1727221511519,3.61475816,2655.8,2655.4,2.43656]
[1727221512104,1.46463816,2655.7,2655.4,5.64436]
[1727221512309,3.61475816,2655.8,2655.4,0.37656]
[1727221512514,3.23823816,2655.8,2655.4,0.37656]
[1727221512704,1.46463816,2655.7,2655.4,0.37656]
[1727221512905,3.61474816,2655.8,2655.4,0.37656]
[1727221513506,1.46463816,2655.7,2655.4,0.37656]
[1727221514011,3.61474816,2655.8,2655.4,0.37656]
[1727221514213,1.46463816,2655.7,2655.4,0.37656]
[1727221514599,1.46463816,2655.7,2655.3,4.99317]
[1727221514802,1.46463816,2655.7,2655.5,2.06]
[1727221515003,1.46463816,2655.9,2655.6,0.37654]
[1727221515211,1.46463816,2655.9,2655.7,0.8505]
[1727221515408,1.95362637,2656.1,2655.7,0.8505]
[1727221515409,1.46463816,2656.0,2655.8,42.4929]
[1727221515612,1.95362637,2656.1,2655.8,42.4929]
[1727221515613,1.46463816,2655.9,2655.8,42.4929]
[1727221516908,1.84111816,2656.0,2655.8,42.4929]
[1727221519610,1.46463816,2656.0,2655.9,2.4365]
[1727221519813,1.46463816,2656.1,2656.0,0.37648]
[1727221520116,1.46463816,2656.1,2655.9,2.06]
[1727221520311,0.8241,2656.2,2656.0,0.95]
[1727221520312,2.28873816,2656.2,2656.0,0.95]
[1727221520817,0.37647,2656.1,2655.9,0.95]
[1727221521312,1.35223884,2656.1,2655.9,0.95]
[1727221522608,1.35223884,2656.1,2655.3,4.19540718]
[1727221522609,4.74056884,2656.0,2655.3,4.19540718]
[1727221522813,0.37651,2655.8,2655.5,0.37655]
[1727221523112,0.37651,2655.8,2655.6,0.95]
[1727221523721,0.37651,2655.8,2655.7,0.95]
[1727221528523,1.82816884,2655.9,2655.7,1.0554192]
[1727221528725,0.8524,2655.9,2655.8,2.11071]
[1727221528925,0.8524,2655.9,2655.8,1.7342]
[1727221529223,1.2289,2655.9,2655.6,4.53433]
[1727221529427,0.8284,2655.8,2655.7,0.37652]
[1727221530422,0.8284,2655.8,2655.6,1.32653]
[1727221538929,1.20491,2655.8,2655.6,0.95]
[1727221539324,0.37652,2655.7,2655.6,0.95]
[1727221539525,0.37652,2655.7,2655.5,0.8399]
[1727221539824,0.8536,2655.6,2655.5,0.8399]
[1727221540618,0.8536,2655.6,2655.4,3.2078]
[1727221540826,0.37655,2655.5,2655.4,3.2078]
[1727221541026,1.20085,2655.5,2655.4,3.2078]
[1727221541328,1.20085,2655.5,2655.3,41.17658]
[1727221541542,0.8643,2655.4,2655.3,41.17658]
[1727221544424,1.82936884,2655.6,2655.3,41.17658]
[1727221544425,2.20590884,2655.6,2655.3,41.17658]
[1727221544632,2.20590884,2655.6,2655.4,0.95]
[1727221544633,3.10240884,2655.6,2655.4,0.95]
[1727221544835,3.10240884,2655.6,2655.5,0.8463]
[1727221545831,2.12664,2655.6,2655.5,0.8463]
[1727221546029,2.72706423,2655.6,2655.5,1.22285]
[1727221546236,1.83056423,2655.6,2655.5,1.22285]
[1727221546534,0.97696423,2655.8,2655.7,0.37652]
[1727221546733,0.97696423,2655.8,2655.6,0.95]
[1727221547227,0.97696423,2655.8,2655.7,41.6434]
[1727221548221,1.46463816,2655.8,2655.7,41.6434]
[1727221548423,1.65296412,2655.9,2655.7,41.6434]
[1727221549131,1.46463816,2655.9,2655.7,41.6434]
[1727221549332,1.46463816,2655.8,2655.7,41.6434]
[1727221550229,5.60674816,2655.8,2655.5,0.8463]
[1727221550437,0.97844034,2655.6,2655.5,0.8463]
[1727221550737,0.97844034,2655.6,2655.5,41.6463]
[1727221551833,0.97859319,2655.6,2655.5,41.6463]
[1727221552020,1.4675819,2655.6,2655.5,41.6463]
[1727221552431,1.65592315,2655.6,2655.5,41.6463]
[1727221552634,1.4675819,2655.6,2655.5,41.6463]
[1727221552827,1.4675819,2655.6,2655.5,0.8463]
[1727221554034,1.65592141,2655.6,2655.5,0.8463]
[1727221554636,1.4675819,2655.6,2655.5,0.8463]
[1727221554937,2.03245775,2655.6,2655.5,0.8463]
[1727221557529,0.56487585,2655.6,2655.5,0.8463]
[1727221558038,2.03461484,2655.6,2655.5,0.8463]
[1727221558227,2.0350525,2655.6,2655.5,0.8463]
[1727221558434,0.56487585,2655.6,2655.5,0.8463]
[1727221558733,2.03518212,2655.6,2655.5,0.8463]
[1727221560331,1.65864212,2655.6,2655.5,0.8463]
[1727221560727,0.56487585,2655.6,2655.5,0.8463]
[1727221561637,2.03538403,2655.6,2655.5,0.8463]
[1727221561835,2.0353851,2655.6,2655.5,0.8463]
[1727221562038,2.03538532,2655.6,2655.5,0.8463]
[1727221565042,1.65884532,2655.6,2655.5,1.22285]
[1727221565537,0.98047664,2655.6,2655.5,2.21044718]
[1727221566040,0.98019672,2655.6,2655.5,1.83390718]
[1727221566231,1.47050818,2655.6,2655.5,1.83390718]
[1727221566541,2.75843818,2655.7,2655.5,1.83390718]
[1727221566738,2.75843818,2655.7,2655.6,0.8097]
[1727221566949,2.94677262,2655.7,2655.6,0.8097]
[1727221567235,1.47626444,2655.7,2655.6,41.6097]
[1727221567440,2.9466997,2655.7,2655.6,41.6097]
[1727221567635,1.47626444,2655.7,2655.6,41.6097]
[1727221568832,1.47626444,2655.7,2655.6,40.8]
[1727221570848,1.47625444,2655.7,2655.6,40.8]
[1727221571049,3.42988081,2655.7,2655.6,40.8]
[1727221571246,1.47625444,2655.7,2655.6,41.17654]
[1727221571453,3.42988081,2655.7,2655.6,40.8]
[1727221571745,1.47625298,2655.7,2655.6,40.8]
[1727221572153,3.42987935,2655.7,2655.6,40.8]
[1727221572337,1.47625298,2655.7,2655.6,40.8]
[1727221574250,1.47625298,2655.7,2655.6,40.90346972]
[1727221576251,1.47625298,2655.7,2655.6,40.8]
[1727221576447,3.42988354,2655.7,2655.6,40.8]
[1727221578148,0.37657,2655.4,2655.3,0.98760718]
[1727221578353,0.3766,2655.2,2655.0,2.74860718]
[1727221578548,1.46976944,2655.2,2655.1,42.16421718]
[1727221578943,1.46976944,2655.2,2655.1,41.17661]
[1727221579358,0.97970556,2655.2,2655.1,44.94301]
[1727221579654,0.97970556,2655.2,2655.1,46.42049032]
[1727221580050,1.46976944,2655.5,2655.1,54.95622558]
[1727221580254,1.46976944,2655.5,2655.4,1.36405275]
[1727221580756,1.46976944,2655.5,2655.4,3.96035275]
[1727221580952,1.46976944,2655.6,2655.4,3.96035275]
[1727221581149,1.46976944,2655.5,2655.4,3.96035275]
[1727221581342,1.46976944,2655.5,2655.4,2.97287]
[1727221581549,1.46976944,2655.5,2655.4,3.96035275]
[1727221581752,1.46976944,2655.5,2655.4,3.58378275]
[1727221582053,2.35236944,2655.5,2655.4,3.96035275]
[1727221584656,2.54070972,2655.5,2655.4,2.97287]
[1727221584966,2.35236944,2655.5,2655.4,3.96035275]
[1727221585149,2.35236944,2655.5,2655.4,2.97287]
[1727221585350,2.35236944,2655.5,2655.4,3.96035275]
[1727221585748,2.54070963,2655.5,2655.4,3.96035275]
[1727221585949,1.65811025,2655.5,2655.4,3.96035275]
[1727221586149,1.46976944,2655.6,2655.5,0.37655]
[1727221586455,1.46976944,2655.6,2655.5,2.31412526]
[1727221586758,1.46976944,2655.6,2655.5,1.93757526]
[1727221587561,1.65810032,2655.6,2655.5,1.93757526]
[1727221587749,1.46976944,2655.6,2655.5,1.93757526]
[1727221588246,1.6581023,2655.6,2655.5,1.93757526]
[1727221588649,1.46976944,2655.6,2655.5,2.31412526]
[1727221589552,1.46976944,2655.6,2655.5,1.93757526]
[1727221591353,1.46976944,2655.6,2655.5,2.31412526]
[1727221591858,1.46976944,2655.6,2655.5,6.07972526]
[1727221595160,1.46976944,2655.6,2655.5,5.70317526]
[1727221595359,2.03463745,2655.6,2655.5,0.98757526]
[1727221595562,3.20251801,2655.6,2655.5,0.98757526]
[1727221595853,3.20251801,2655.6,2655.3,0.98757526]
[1727221595854,0.37658,2655.4,2655.3,0.98757526]
[1727221596054,0.37658,2655.3,2655.2,1.79837526]
[1727221596265,1.84895827,2655.3,2655.2,1.79863261]
[1727221599366,0.37658,2655.3,2655.2,1.79863261]
[1727221599758,1.84895827,2655.3,2655.2,1.79863261]
[1727221600659,1.47237827,2655.3,2655.2,3.12523261]
[1727221600859,0.8851,2655.6,2655.4,0.37656]
[1727221601063,0.8851,2655.6,2655.5,0.8738]
[1727221601256,1.07343645,2655.6,2655.5,0.8738]
[1727221603062,1.07343645,2655.6,2655.5,2.23784991]
[1727221603063,0.8851,2655.6,2655.5,2.23784991]
[1727221604069,0.8851,2655.6,2655.5,0.8738]
[1727221604070,1.07343129,2655.6,2655.5,0.8738]
[1727221604760,0.8851,2655.6,2655.5,1.86129991]
[1727221606170,1.07343263,2655.6,2655.5,0.8738]
[1727221607066,0.8851,2655.6,2655.5,1.86129991]
[1727221607664,0.8851,2655.6,2655.5,1.96473719]
[1727221608065,0.8851,2655.6,2655.5,0.97723728]
[1727221608066,1.07343442,2655.6,2655.5,0.97723728]
[1727221609077,0.8851,2655.6,2655.5,1.96473719]
[1727221609472,0.8851,2655.6,2655.5,2.34128719]
[1727221610166,1.07342956,2655.6,2655.5,0.97723728]
[1727221610367,1.07342956,2655.6,2655.5,0.8738]
[1727221611264,0.8851,2655.6,2655.5,1.86129991]
[1727221613279,1.07342879,2655.6,2655.5,0.8738]
[1727221613764,1.07342879,2655.6,2655.5,1.7078]
[1727221613965,1.07342879,2655.6,2655.5,1.81442106]
[1727221614164,0.8851,2655.6,2655.5,2.80192097]
[1727221615074,1.07343392,2655.6,2655.5,1.81442106]
[1727221615666,1.07343392,2655.6,2655.5,1.7078]
[1727221616268,0.8851,2655.6,2655.5,2.69529991]
[1727221617572,0.8851,2655.6,2655.5,1.7078]
[1727221617573,1.07342938,2655.6,2655.5,1.7078]
[1727221618374,1.44996938,2655.6,2655.5,0.8738]
[1727221618570,1.44996938,2655.6,2655.4,1.36405991]
[1727221618784,0.8731,2655.5,2655.4,1.36405991]
[1727221619081,1.06144005,2655.5,2655.4,0.37656]
[1727221619379,1.06144042,2655.5,2655.4,0.37656]
[1727221620476,1.06144042,2655.5,2655.3,7.35991849]
[1727221620676,0.8731,2655.5,2655.3,7.35991849]
[1727221621483,0.8731,2655.5,2655.3,6.47901849]
[1727221623377,1.24965,2655.5,2655.3,6.47901849]
[1727221623577,0.8731,2655.5,2655.3,6.47901849]
[1727221624483,0.8731,2655.5,2655.4,1.32657]
[1727221624777,0.8731,2655.5,2655.4,3.18066991]
[1727221624778,0.18834279,2655.5,2655.4,3.18066991]
[1727221625971,0.18834279,2655.5,2655.4,2.80409991]
[1727221626279,0.18834279,2655.5,2655.4,3.18066991]
[1727221626976,2.84861515,2655.6,2655.5,0.37655]
[1727221627184,3.03694975,2655.6,2655.5,1.22535]
[1727221627577,3.03695005,2655.6,2655.5,1.22535]
[1727221629284,1.0734349,2655.6,2655.5,1.22535]
[1727221629787,3.03695005,2655.6,2655.5,1.22535]
[1727221630686,2.25933,2655.5,2655.4,0.98749991]
[1727221630884,2.25933,2655.5,2655.3,1.48124987]
[1727221630885,0.3766,2655.2,2655.1,0.98749991]
[1727221631078,1.50647478,2655.2,2655.1,0.98749991]
[1727221631280,1.50647478,2655.2,2654.8,1.97081526]
[1727221631281,0.37662,2655.0,2654.9,0.98749991]
[1727221631879,0.56500207,2655.0,2654.8,41.78749991]
[1727221632083,0.8762,2654.9,2654.8,41.78749991]
[1727221632486,0.8762,2654.9,2654.8,41.17665]
[1727221633183,0.8762,2654.9,2654.8,40.8]
[1727221633184,4.6426,2654.9,2654.8,40.8]
[1727221633386,4.83099394,2654.9,2654.6,3.2078]
[1727221633684,1.32666,2654.8,2654.6,3.2078]
[1727221633886,0.8762,2654.9,2654.6,3.2078]
[1727221633887,0.37667,2654.7,2654.6,3.2078]
[1727221637489,0.37666,2654.8,2654.6,3.2078]
[1727221638685,0.8537,2654.7,2654.6,3.2078]
[1727221639388,0.8537,2654.7,2654.5,42.12669]
[1727221641685,0.37663,2655.0,2654.7,0.37666]
[1727221641890,2.3138479,2655.3,2654.9,0.95]
[1727221642198,2.3138479,2655.3,2655.2,0.95]
[1727221642199,3.2039379,2655.3,2655.2,0.95]
[1727221642491,1.24109,2655.3,2655.2,0.95]
[1727221643089,1.24109,2655.3,2655.1,0.95]
[1727221643291,1.24109,2655.3,2655.1,1.7968]
[1727221644391,1.24109,2655.3,2655.1,0.8468]
[1727221647896,0.3766,2655.2,2655.1,0.8468]
[1727221649394,3.2078,2655.4,2655.2,0.3766]
[1727221649589,3.58437,2655.4,2655.2,0.3766]
[1727221649894,3.58437,2655.4,2655.1,1.2234]
[1727221651102,3.58437,2655.4,2655.2,0.37659]
[1727221652004,0.37657,2655.4,2655.2,0.37659]
[1727221652189,3.58437,2655.4,2655.2,0.37659]
[1727221652704,3.58437,2655.4,2655.1,0.8468]
[1727221652705,0.3766,2655.2,2655.1,0.8468]
[1727221654112,0.37656,2655.5,2655.2,0.37659]
[1727221654404,0.37656,2655.5,2655.2,0.7265]
[1727221654594,0.37656,2655.5,2655.2,1.10309]
[1727221656600,1.22685,2655.6,2655.2,1.10309]
[1727221656804,0.37656,2655.5,2655.2,1.10309]
[1727221657010,0.8503,2655.6,2655.2,0.7265]
[1727221657196,0.37652,2655.8,2655.5,0.37655]
[1727221657404,0.37652,2655.8,2655.6,2.3097]
[1727221658298,2.6976479,2655.9,2655.7,0.37652]
[1727221658497,0.3765,2655.9,2655.6,2.68623]
[1727221658699,0.3765,2655.9,2655.6,2.3097]
[1727221658908,0.37651,2655.8,2655.6,2.3097]
[1727221659395,0.37651,2655.9,2655.6,2.3097]
[1727221660309,0.37651,2655.9,2655.6,2.68624]
[1727221660905,1.46593626,2655.9,2655.7,0.37652]
[1727221661204,5.05020626,2656.1,2655.8,0.37651]
[1727221661514,3.58427,2656.1,2655.9,40.8]
[1727221661702,3.2078,2656.1,2656.0,1.5773]
[1727221662005,3.2078,2656.1,2656.0,2.3342]
[1727221662207,4.67373626,2656.1,2656.0,2.3342]
[1727221662412,5.05020626,2656.1,2656.0,2.3342]
[1727221662602,3.58427,2656.1,2656.0,2.3342]
[1727221666814,0.37647,2656.1,2656.0,2.3342]
[1727221667015,3.58427,2656.1,2656.0,2.3342]
[1727221669611,0.3765,2655.9,2655.8,40.8]
[1727221669916,0.37652,2655.8,2655.4,1.5046]
[1727221670109,1.10352,2655.8,2655.5,1.32654]
[1727221670812,0.37653,2655.7,2655.5,0.95]
[1727221677914,0.37654,2655.6,2655.5,0.95]
[1727221685425,0.727,2655.8,2655.5,0.95]
[1727221685619,0.727,2655.8,2655.4,1.5046]
[1727221685620,0.727,2655.8,2655.7,0.95]
[1727221686526,1.10351,2655.8,2655.7,0.95]
[1727221691631,2.56944626,2655.8,2655.7,0.95]
[1727221691827,1.10351,2655.8,2655.7,0.95]
[1727221692427,2.56944626,2655.8,2655.7,0.95]
[1727221693139,1.10351,2655.8,2655.6,0.7241]
[1727221693435,0.37652,2655.7,2655.6,0.7241]
[1727221693742,2.56945626,2655.8,2655.6,0.7241]
[1727221695838,2.56945626,2655.8,2655.6,1.10064]
[1727221696139,2.56945626,2655.8,2655.6,0.37654]
[1727221697727,1.46593626,2655.7,2655.6,0.37654]
[1727221698735,1.46593626,2655.7,2655.5,1.32654]
[1727221699038,0.7873,2655.6,2655.5,1.32654]
[1727221699929,1.76539664,2655.6,2655.5,1.32654]
[1727221701438,1.76558604,2655.6,2655.5,2.31403991]
[1727221702344,0.7873,2655.6,2655.5,2.31403991]
[1727221702534,2.25323626,2655.6,2655.5,2.31403991]
[1727221705136,1.46593626,2655.6,2655.5,2.31403991]
[1727221708340,1.46593626,2655.6,2655.5,6.07963991]
[1727221709850,1.46593626,2655.7,2655.6,0.37654]
[1727221710042,1.46593626,2655.7,2655.6,6.07995951]
[1727221710245,0.18833034,2655.7,2655.6,5.09214]
[1727221710547,1.46708714,2655.7,2655.6,6.07995951]
[1727221711442,1.46708714,2655.7,2655.6,5.09214]
[1727221711641,1.46708714,2655.7,2655.6,6.08001058]
[1727221711836,1.46708714,2655.8,2655.6,6.57338987]
[1727221712134,1.46708714,2655.7,2655.6,2.31441714]
[1727221712339,1.46708714,2655.8,2655.7,0.37652]
[1727221712541,1.65540953,2655.8,2655.7,2.31444792]
[1727221714336,1.65540953,2655.8,2655.7,1.32652]
[1727221714337,1.46708714,2655.8,2655.7,1.32652]
[1727221714543,1.46708714,2655.8,2655.7,2.80776987]
[1727221715845,1.46708714,2655.8,2655.7,1.32652]
[1727221716046,1.46708714,2655.8,2655.7,2.31440934]
[1727221717144,1.57528714,2655.8,2655.7,2.80776987]
[1727221717539,0.1082,2655.8,2655.7,2.80776987]
[1727221717747,0.1082,2655.8,2655.7,1.32652]
[1727221717950,1.57528714,2655.8,2655.7,1.32652]
[1727221718349,0.97853336,2655.9,2655.8,4.70688]
[1727221718553,1.0706,2656.5,2655.8,12.10654691]
[1727221718748,0.7196,2656.5,2656.4,0.95]
[1727221718945,0.90788063,2656.5,2656.4,0.95]
[1727221720558,1.09601,2656.5,2656.4,0.95]
[1727221721055,1.28429537,2656.5,2656.4,0.95]
[1727221721358,0.7196,2656.5,2656.4,0.95]
[1727221721552,1.09601,2656.5,2656.4,0.95]
[1727221722348,0.7196,2656.5,2656.4,0.95]
[1727221723060,1.09601,2656.5,2656.4,0.95]
[1727221732354,0.37644,2656.3,2656.2,0.95]
[1727221733058,1.13243,2656.4,2656.2,1.32645]
[1727221733262,0.37644,2656.3,2656.2,1.32645]
[1727221733567,0.37644,2656.3,2656.2,0.95]
[1727221734373,0.37644,2656.3,2656.2,1.32645]
[1727221734974,0.37644,2656.3,2656.2,0.95]
[1727221735566,0.37644,2656.3,2656.2,1.32645]
[1727221736775,0.37644,2656.3,2656.2,0.95]
[1727221738373,0.37644,2656.3,2656.2,1.32645]
[1727221740080,0.37644,2656.3,2656.2,0.95]
[1727221741961,0.37644,2656.3,2656.2,1.6697]
[1727221742166,0.7196,2656.5,2656.2,1.6697]
[1727221742167,0.37644,2656.4,2656.2,1.6697]
[1727221742469,0.37644,2656.4,2656.3,0.95]
[1727221742670,0.37644,2656.4,2656.3,1.6914]
[1727221751279,0.37644,2656.4,2656.0,0.7456]
[1727221751579,0.37646,2656.2,2656.0,2.07208]
[1727221751963,0.37646,2656.2,2656.1,0.95]
[1727221752568,0.37646,2656.2,2656.1,1.6703]
[1727221752777,0.37646,2656.2,2656.1,2.04677]
[1727221753372,0.37646,2656.2,2656.1,1.6703]
[1727221757777,0.37647,2656.1,2656.0,1.6956]
[1727221758280,13.17231628,2656.1,2655.5,0.9870524]
[1727221758479,0.94139,2655.5,2655.2,0.7807]
[1727221758783,0.37658,2655.3,2655.2,0.7807]
[1727221759283,0.56494718,2655.3,2655.2,0.7807]
[1727221759577,0.37658,2655.3,2655.2,0.7807]
[1727221764879,4.14298,2655.3,2655.2,0.7807]
[1727221765183,0.3766,2655.2,2655.1,0.7671]
[1727221765379,0.3766,2655.2,2655.1,1.4895]
[1727221769484,0.3766,2655.2,2655.1,2.4395]
[1727221772286,0.3766,2655.2,2655.1,2.81611]
[1727221772588,0.1082,2655.3,2655.2,0.3766]
[1727221772792,0.1082,2655.3,2655.2,1.3266]
[1727221774895,0.1082,2655.3,2655.2,0.95]
[1727221777094,0.1082,2655.3,2655.2,1.3266]
[1727221779488,0.48478,2655.3,2655.1,2.81611]
[1727221779692,0.1082,2655.3,2655.2,0.3766]
[1727221780593,0.1082,2655.3,2655.1,2.8161]
[1727221781188,0.1082,2655.3,2655.2,0.3766]
[1727221782389,0.1082,2655.3,2655.2,1.3266]
[1727221783188,0.37655,2655.5,2655.2,1.3266]
[1727221783389,0.37657,2655.4,2655.2,1.3266]
[1727221783797,0.37656,2655.5,2655.2,1.3266]
[1727221784396,0.7231,2655.4,2655.2,1.3266]
[1727221786294,1.09967,2655.4,2655.2,0.95]
[1727221786490,1.85057,2655.4,2655.2,0.95]
[1727221788588,0.37658,2655.3,2655.1,1.4895]
[1727221788793,0.3766,2655.2,2655.1,1.4895]
[1727221789697,0.3766,2655.2,2655.1,2.4395]
[1727221795205,0.37659,2655.3,2655.1,2.4395]
[1727221796102,0.37659,2655.3,2655.1,2.81611]
[1727221799708,0.37659,2655.3,2655.1,2.92273356]
[1727221800609,0.37659,2655.3,2655.1,2.54612356]
[1727221801005,0.37659,2655.3,2655.1,2.92273356]
[1727221801305,0.37659,2655.3,2655.1,2.54612356]
[1727221801510,0.37659,2655.3,2655.1,2.92273356]
[1727221801707,3.04406629,2655.4,2655.1,2.92273356]
[1727221801708,3.42064629,2655.4,2655.1,2.92273356]
[1727221801902,2.66974629,2655.4,2655.3,0.95]
[1727221802507,1.39624186,2655.4,2655.3,0.95]